fUSD/lending_fUSD_20250125
["ID","MTS","AMOUNT","RATE_DAILY","PERIOD"]
[350361260,1737813089975,-628.41,0.00017808,2]
[350361261,1737813089984,-547.24,0.00017808,2]
[350361262,1737813089994,-524.68038865,0.00017808,2]
[350361263,1737813090003,-500.0,0.00017808,2]
[350361264,1737813090013,-500.0,0.00017808,2]
[350361265,1737813090022,-760.92,0.00017808,2]
[350361266,1737813090032,-500.0,0.00017808,2]
[350361267,1737813090041,-772.61,0.00017808,2]
[350361268,1737813090050,-1375.09,0.00017808,2]
[350361269,1737813090060,-876.13,0.00017808,2]
[350361270,1737813090070,-537.57,0.00017808,2]
[350361271,1737813090080,-568.9,0.00017808,2]
[350361272,1737813090089,-2395.84,0.00017808,2]
[350361273,1737813090099,-500.0,0.00017808,2]
[350361274,1737813090109,-1063.43,0.00017808,2]
[350361275,1737813090118,-500.0,0.00017808,2]
[350361276,1737813090129,-2460.08,0.00017808,2]
[350361277,1737813090140,-500.0,0.00017808,2]
[350361278,1737813090150,-500.0,0.00017808,2]
[350361279,1737813090159,-689.97,0.00017808,2]
[350361280,1737813090168,-740.0,0.00017808,2]
[350361281,1737813090178,-500.0,0.00017808,2]
[350361282,1737813090187,-500.0,0.00017808,2]
[350361283,1737813090197,-500.0,0.00017808,2]
[350361284,1737813090206,-667.16,0.00017808,2]
[350361285,1737813090215,-500.0,0.00017808,2]
[350361286,1737813090225,-706.71,0.00017808,2]
[350361287,1737813090235,-500.0,0.00017808,2]
[350361288,1737813090244,-1416.08,0.00017808,2]
[350361289,1737813090254,-1131.23,0.00017808,2]
[350361290,1737813090263,-800.38,0.00017808,2]
[350361291,1737813090273,-500.0,0.00017808,2]
[350361292,1737813090283,-842.21,0.00017808,2]
[350361293,1737813090293,-500.0,0.00017808,2]
[350361294,1737813090303,-599.36,0.00017808,2]
[350361295,1737813090313,-500.0,0.00017808,2]
[350361296,1737813090323,-732.46,0.00017808,2]
[350361297,1737813090333,-1308.92,0.00017808,2]
[350361298,1737813090343,-1000.0,0.00017808,2]
[350361299,1737813090353,-2319.73,0.00017808,2]
[350361300,1737813090363,-500.0,0.00017808,2]
[350361301,1737813090373,-687.95,0.00017808,2]
[350361302,1737813090384,-500.0,0.00017808,2]
[350361303,1737813090393,-500.0,0.00017808,2]
[350361304,1737813090404,-924.66,0.00017808,2]
[350361305,1737813090413,-500.0,0.00017808,2]
[350361306,1737813090423,-1116.95,0.00017808,2]
[350361307,1737813090433,-528.29,0.00017808,2]
[350361308,1737813090443,-517.43,0.00017808,2]
[350361309,1737813090455,-304.00005952,0.00017808,2]
[350361310,1737813090465,-621.51,0.00017808,2]
[350361311,1737813090475,-534.07,0.00017808,2]
[350361312,1737813090485,-500.0,0.00017808,2]
[350361313,1737813090494,-591.54,0.00017808,2]
[350361314,1737813090503,-500.0,0.00017808,2]
[350361315,1737813090513,-815.81,0.00017808,2]
[350361316,1737813090523,-700.4,0.00017808,2]
[350361317,1737813090532,-500.0,0.00017808,2]
[350361318,1737813090542,-298.2,0.0001789,2]
[350361319,1737813090551,-298.2,0.0001789,2]
[350361320,1737813090561,-298.2,0.0001789,2]
[350361321,1737813090571,-2300.0,0.000179,6]
[350361322,1737813090580,-1117.85,0.00017944,2]
[350361323,1737813090590,-2342.33,0.00017944,2]
[350361324,1737813090600,-547.974536,0.00017945,2]
[350361325,1737813090609,-602.38,0.00017945,2]
[350361326,1737813090619,-376.945656,0.00017945,2]
[350361327,1737813090628,-500.0,0.00017945,2]
[350361328,1737813090638,-500.0,0.00017945,2]
[350361329,1737813090647,-500.0,0.00017945,2]
[350361330,1737813090656,-213.78518886,0.00017945,2]
[350361331,1737813090666,-500.0,0.00017945,2]
[350361332,1737813090675,-500.0,0.00017945,2]
[350361333,1737813090684,-572.28,0.00017945,2]
[350361334,1737813090694,-500.0,0.00017945,2]
[350361335,1737813090704,-500.0,0.00017945,2]
[350361336,1737813090714,-500.0,0.00017945,2]
[350361337,1737813090723,-206.13637775,0.00017945,2]
[350361338,1737813090732,-500.0,0.00017945,2]
[350361339,1737813090742,-500.0,0.00017945,2]
[350361340,1737813090750,-500.0,0.00017945,2]
[350361341,1737813090759,-500.0,0.00017945,2]
[350361342,1737813090768,-500.0,0.00017945,2]
[350361343,1737813090777,-500.0,0.00017945,2]
[350361344,1737813090787,-500.0,0.00017945,2]
[350361345,1737813090796,-500.0,0.00017945,2]
[350361346,1737813090805,-500.0,0.00017945,2]
[350361347,1737813090815,-500.0,0.00017945,2]
[350361348,1737813090824,-500.0,0.00017945,2]
[350361349,1737813090834,-500.0,0.00017945,2]
[350361350,1737813090843,-500.0,0.00017945,2]
[350361351,1737813090853,-253.99,0.00017945,2]
[350361352,1737813090863,-500.0,0.00017945,2]
[350361353,1737813090872,-500.0,0.00017945,2]
[350361354,1737813090881,-500.0,0.00017945,2]
[350361355,1737813090895,-500.0,0.00017945,2]
[350361356,1737813090905,-571.14,0.00017945,2]
[350361357,1737813090914,-500.0,0.00017945,2]
[350361358,1737813090923,-500.0,0.00017945,2]
[350361359,1737813090934,-500.0,0.00017945,2]
[350361360,1737813090944,-500.0,0.00017945,2]
[350361361,1737813090953,-465.512341,0.00017945,2]
[350361362,1737813090963,-533.46,0.00017945,2]
[350361363,1737813090974,-500.0,0.00017945,2]
[350361364,1737813090984,-500.0,0.00017945,2]
[350361365,1737813090994,-533.48,0.00017945,2]
[350361366,1737813091003,-500.0,0.00017945,2]
[350361367,1737813091012,-297.29381965,0.00017945,2]
[350361368,1737813091021,-501.50519256,0.00017945,2]
[350361369,1737813091031,-500.0,0.00017945,2]
[350361370,1737813091040,-617.68,0.00017945,2]
[350361371,1737813091049,-500.0,0.00017945,2]
[350361372,1737813091059,-500.0,0.00017945,2]
[350361373,1737813091068,-627.37767151,0.00017945,2]
[350361374,1737813091078,-500.0,0.00017945,2]
[350361375,1737813091088,-558.68,0.00017945,2]
[350361376,1737813091097,-500.0,0.00017945,2]
[350361377,1737813091107,-571.63568071,0.00017945,2]
[350361378,1737813091116,-500.0,0.00017945,2]
[350361379,1737813091126,-500.0,0.00017945,2]
[350361380,1737813091135,-500.0,0.00017945,2]
[350361381,1737813091146,-500.0,0.00017945,2]
[350361382,1737813091156,-500.0,0.00017945,2]
[350361383,1737813091166,-500.0,0.00017945,2]
[350361384,1737813091175,-515.38105194,0.00017945,2]
[350361385,1737813091185,-500.0,0.00017945,2]
[350361386,1737813091195,-500.0,0.00017945,2]
[350361387,1737813091204,-500.0,0.00017945,2]
[350361388,1737813091213,-1889.73,0.00017945,2]
[350361389,1737813091223,-500.0,0.00017945,2]
[350361390,1737813091231,-665.28,0.00017945,2]
[350361391,1737813091241,-789.58,0.00017945,2]
[350361392,1737813091250,-500.0,0.00017945,2]
[350361393,1737813091260,-500.0,0.00017945,2]
[350361394,1737813091269,-500.0,0.00017945,2]
[350361395,1737813091279,-1330.19,0.00017945,2]
[350361396,1737813091288,-500.0,0.00017945,2]
[350361397,1737813091298,-500.0,0.00017945,2]
[350361398,1737813091307,-500.0,0.00017945,2]
[350361399,1737813091316,-744.86,0.00017945,2]
[350361400,1737813091325,-500.0,0.00017945,2]
[350361401,1737813091335,-770.24,0.00017945,2]
[350361402,1737813091344,-500.0,0.00017945,2]
[350361403,1737813091354,-1531.48,0.00017945,2]
[350361404,1737813091363,-500.0,0.00017945,2]
[350361405,1737813091373,-500.0,0.00017945,2]
[350361406,1737813091382,-2865.43,0.00017945,2]
[350361407,1737813091391,-500.0,0.00017945,2]
[350361408,1737813091400,-716.83,0.00017945,2]
[350361409,1737813091410,-500.0,0.00017945,2]
[350361410,1737813091419,-160.95147916,0.00017945,2]
[350361411,1737813091428,-643.17,0.00017945,2]
[350361412,1737813091438,-609.94,0.00017945,2]
[350361413,1737813091447,-1101.23,0.00017945,2]
[350361414,1737813091456,-500.0,0.00017945,2]
[350361415,1737813091465,-500.0,0.00017945,2]
[350361416,1737813091475,-500.0,0.00017945,2]
[350361417,1737813091483,-1583.89,0.00017945,2]
[350361418,1737813091492,-782.83,0.00017945,2]
[350361419,1737813091502,-760.48,0.00017945,2]
[350361420,1737813091511,-1381.24,0.00017945,2]
[350361421,1737813091520,-500.0,0.00017945,2]
[350361422,1737813091529,-2726.15,0.00017945,2]
[350361423,1737813091538,-766.47,0.00017945,2]
[350361424,1737813091549,-578.7,0.00017945,2]
[350361425,1737813091558,-2076.9,0.00017945,2]
[350361426,1737813091567,-570.43,0.00017945,2]
[350361427,1737813091576,-938.06,0.00017945,2]
[350361428,1737813091586,-506.64,0.00017945,2]
[350361429,1737813091595,-500.0,0.00017945,2]
[350361430,1737813091606,-500.0,0.00017945,2]
[350361431,1737813091616,-500.0,0.00017945,2]
[350361432,1737813091625,-3034.26,0.00017945,2]
[350361433,1737813091634,-1373.5,0.00017945,2]
[350361434,1737813091643,-2953.97,0.00017945,2]
[350361435,1737813091652,-1530.59,0.00017945,2]
[350361436,1737813091662,-1726.4,0.00017945,2]
[350361437,1737813091672,-798.84,0.00017945,2]
[350361438,1737813091681,-3013.3,0.00017945,2]
[350361439,1737813091691,-626.75,0.00017945,2]
[350361440,1737813091700,-739.22,0.00017945,2]
[350361441,1737813091710,-1860.59,0.00017945,2]
[350361442,1737813091720,-1888.84,0.00017945,2]
[350361443,1737813091730,-500.0,0.00017945,2]
[350361444,1737813091739,-666.1,0.00017945,2]
[350361445,1737813091748,-500.0,0.00017945,2]
[350361446,1737813091758,-690.64,0.00017945,2]
[350361447,1737813091768,-2315.92,0.00017945,2]
[350361448,1737813091777,-500.0,0.00017945,2]
[350361449,1737813091787,-1623.95,0.00017945,2]
[350361450,1737813091795,-500.0,0.00017945,2]
[350361451,1737813091804,-983.3,0.00017945,2]
[350361452,1737813091814,-513.75495602,0.00017945,2]
[350361453,1737813091823,-500.0,0.00017945,2]
[350361454,1737813091834,-500.0,0.00017945,2]
[350361455,1737813091843,-500.0,0.00017945,2]
[350361456,1737813091854,-628.41,0.00017945,2]
[350361457,1737813091863,-547.24,0.00017945,2]
[350361458,1737813091873,-500.0,0.00017945,2]
[350361459,1737813091882,-760.92,0.00017945,2]
[350361460,1737813091893,-500.0,0.00017945,2]
[350361461,1737813091904,-772.61,0.00017945,2]
[350361462,1737813091914,-1375.09,0.00017945,2]
[350361463,1737813091923,-876.13,0.00017945,2]
[350361464,1737813091932,-537.57,0.00017945,2]
[350361465,1737813091942,-568.9,0.00017945,2]
[350361466,1737813091953,-2395.84,0.00017945,2]
[350361467,1737813091962,-500.0,0.00017945,2]
[350361468,1737813091972,-1063.43,0.00017945,2]
[350361469,1737813091982,-500.0,0.00017945,2]
[350361470,1737813091991,-2460.08,0.00017945,2]
[350361471,1737813092001,-500.0,0.00017945,2]
[350361472,1737813092010,-500.0,0.00017945,2]
[350361473,1737813092020,-689.97,0.00017945,2]
[350361474,1737813092030,-740.0,0.00017945,2]
[350361475,1737813092039,-500.0,0.00017945,2]
[350361476,1737813092048,-500.0,0.00017945,2]
[350361477,1737813092057,-500.0,0.00017945,2]
[350361478,1737813092067,-667.16,0.00017945,2]
[350361479,1737813092076,-500.0,0.00017945,2]
[350361480,1737813092085,-706.71,0.00017945,2]
[350361481,1737813092095,-500.0,0.00017945,2]
[350361482,1737813092104,-1131.23,0.00017945,2]
[350361483,1737813092113,-1416.08,0.00017945,2]
[350361484,1737813092123,-800.38,0.00017945,2]
[350361485,1737813092132,-500.0,0.00017945,2]
[350361486,1737813092141,-842.21,0.00017945,2]
[350361487,1737813092150,-500.0,0.00017945,2]
[350361488,1737813092160,-599.36,0.00017945,2]
[350361489,1737813092170,-732.46,0.00017945,2]
[350361490,1737813092179,-1308.92,0.00017945,2]
[350361491,1737813092188,-1000.0,0.00017945,2]
[350361492,1737813092199,-2319.73,0.00017945,2]
[350361493,1737813092208,-687.95,0.00017945,2]
[350361494,1737813092218,-500.0,0.00017945,2]
[350361495,1737813092227,-221.44,0.00017945,2]
[350361496,1737813092237,-500.0,0.00017945,2]
[350361497,1737813092368,-924.66,0.00017945,2]
[350361498,1737813092379,-500.0,0.00017945,2]
[350361499,1737813092388,-1116.95,0.00017945,2]
[350361500,1737813092398,-528.29,0.00017945,2]
[350361501,1737813092407,-517.43,0.00017945,2]
[350361502,1737813092417,-621.51,0.00017945,2]
[350361503,1737813092426,-534.07,0.00017945,2]
[350361504,1737813092436,-500.0,0.00017945,2]
[350361505,1737813092446,-591.54,0.00017945,2]
[350361506,1737813092455,-815.81,0.00017945,2]
[350361507,1737813092465,-700.4,0.00017945,2]
[350361508,1737813092475,-500.0,0.00017945,2]
[350361509,1737813092484,-2000.0,0.00018,2]
[350361510,1737813092493,-600.0,0.00018,2]
[350361511,1737813092503,-2000.0,0.00018,5]
[350361512,1737813092512,-10996.64302874,0.00018,3]
[350361513,1737813092521,-1536.3481232,0.00018,10]
[350361514,1737813092531,-388.001393,0.00018,5]
[350361515,1737813092540,-1135.36479407,0.00018,2]
[350361516,1737813092549,-1033.45045277,0.00018,2]
[350361517,1737813092558,-5615.36403996,0.00018,2]
[350361518,1737813092568,-1321.05501897,0.00018,2]
[350361519,1737813092577,-2889.381,0.00018006,2]
[350361520,1737813092586,-181.304,0.00018006,2]
[350361521,1737813092595,-1117.85,0.00018081,2]
[350361522,1737813092605,-2342.33,0.00018081,2]
[350361523,1737813092613,-547.974536,0.00018082,2]
[350361524,1737813092623,-158.70164,0.00018082,2]
[350361525,1737813092633,-602.38,0.00018082,2]
[350361526,1737813092642,-376.945656,0.00018082,2]
[350361527,1737813092651,-500.0,0.00018082,2]
[350361528,1737813092660,-500.0,0.00018082,2]
[350361529,1737813092669,-500.0,0.00018082,2]
[350361530,1737813092678,-500.0,0.00018082,2]
[350361531,1737813092687,-500.0,0.00018082,2]
[350361532,1737813092697,-500.0,0.00018082,2]
[350361533,1737813092706,-500.0,0.00018082,2]
[350361534,1737813092715,-500.0,0.00018082,2]
[350361535,1737813092724,-500.0,0.00018082,2]
[350361536,1737813092733,-500.0,0.00018082,2]
[350361537,1737813092743,-500.0,0.00018082,2]
[350361538,1737813092753,-500.0,0.00018082,2]
[350361539,1737813092762,-500.0,0.00018082,2]
[350361540,1737813092771,-500.0,0.00018082,2]
[350361541,1737813092780,-500.0,0.00018082,2]
[350361542,1737813092788,-500.0,0.00018082,2]
[350361543,1737813092797,-488.88,0.00018082,2]
[350361544,1737813092806,-500.0,0.00018082,2]
[350361545,1737813092815,-500.0,0.00018082,2]
[350361546,1737813092825,-571.14,0.00018082,2]
[350361547,1737813092835,-500.0,0.00018082,2]
[350361548,1737813092844,-500.0,0.00018082,2]
[350361549,1737813092853,-500.0,0.00018082,2]
[350361550,1737813092863,-500.0,0.00018082,2]
[350361551,1737813092872,-533.46,0.00018082,2]
[350361552,1737813092881,-456.22,0.00018082,2]
[350361553,1737813092891,-232.4124974,0.00018082,2]
[350361554,1737813092904,-533.48,0.00018082,2]
[350361555,1737813092913,-595.52906595,0.00018082,2]
[350361556,1737813092922,-500.0,0.00018082,2]
[350361557,1737813092931,-500.0,0.00018082,2]
[350361558,1737813092942,-500.0,0.00018082,2]
[350361559,1737813092954,-578.0,0.00018082,2]
[350361560,1737813092963,-291.30153378,0.00018082,2]
[350361561,1737813092973,-500.0,0.00018082,2]
[350361562,1737813092982,-500.0,0.00018082,2]
[350361563,1737813092992,-500.0,0.00018082,2]
[350361564,1737813093001,-500.0,0.00018082,2]
[350361565,1737813093011,-500.0,0.00018082,2]
[350361566,1737813093020,-577.49,0.00018082,2]
[350361567,1737813093029,-500.0,0.00018082,2]
[350361568,1737813093039,-500.0,0.00018082,2]
[350361569,1737813093048,-1889.73,0.00018082,2]
[350361570,1737813093058,-500.0,0.00018082,2]
[350361571,1737813093068,-665.28,0.00018082,2]
[350361572,1737813093077,-789.58,0.00018082,2]
[350361573,1737813093087,-500.0,0.00018082,2]
[350361574,1737813093097,-500.0,0.00018082,2]
[350361575,1737813093106,-500.0,0.00018082,2]
[350361576,1737813093116,-1330.19,0.00018082,2]
[350361577,1737813093125,-500.0,0.00018082,2]
[350361578,1737813093135,-500.0,0.00018082,2]
[350361579,1737813093144,-500.0,0.00018082,2]
[350361580,1737813093154,-744.86,0.00018082,2]
[350361581,1737813093163,-500.0,0.00018082,2]
[350361582,1737813093173,-770.24,0.00018082,2]
[350361583,1737813093182,-500.0,0.00018082,2]
[350361584,1737813093192,-1531.48,0.00018082,2]
[350361585,1737813093202,-500.0,0.00018082,2]
[350361586,1737813093212,-500.0,0.00018082,2]
[350361587,1737813093221,-2865.43,0.00018082,2]
[350361588,1737813093230,-500.0,0.00018082,2]
[350361589,1737813093240,-716.83,0.00018082,2]
[350361590,1737813093250,-500.0,0.00018082,2]
[350361591,1737813093259,-643.17,0.00018082,2]
[350361592,1737813093269,-609.94,0.00018082,2]
[350361593,1737813093279,-1101.23,0.00018082,2]
[350361594,1737813093288,-500.0,0.00018082,2]
[350361595,1737813093297,-500.0,0.00018082,2]
[350361596,1737813093306,-500.0,0.00018082,2]
[350361597,1737813093316,-1583.89,0.00018082,2]
[350361598,1737813093325,-782.83,0.00018082,2]
[350361599,1737813093335,-760.48,0.00018082,2]
[350361600,1737813093344,-1381.24,0.00018082,2]
[350361601,1737813093353,-2726.15,0.00018082,2]
[350361602,1737813093363,-766.47,0.00018082,2]
[350361603,1737813093373,-578.7,0.00018082,2]
[350361604,1737813093383,-2076.9,0.00018082,2]
[350361605,1737813093392,-570.43,0.00018082,2]
[350361606,1737813093401,-938.06,0.00018082,2]
[350361607,1737813093411,-500.0,0.00018082,2]
[350361608,1737813093420,-500.0,0.00018082,2]
[350361609,1737813093429,-500.0,0.00018082,2]
[350361610,1737813093438,-3034.26,0.00018082,2]
[350361611,1737813093447,-1373.5,0.00018082,2]
[350361612,1737813093456,-2953.97,0.00018082,2]
[350361613,1737813093467,-1530.59,0.00018082,2]
[350361614,1737813093476,-1726.4,0.00018082,2]
[350361615,1737813093486,-798.84,0.00018082,2]
[350361616,1737813093495,-3013.3,0.00018082,2]
[350361617,1737813093505,-626.75,0.00018082,2]
[350361618,1737813093515,-739.22,0.00018082,2]
[350361619,1737813093524,-1860.59,0.00018082,2]
[350361620,1737813093534,-1888.84,0.00018082,2]
[350361621,1737813093543,-500.0,0.00018082,2]
[350361622,1737813093553,-666.1,0.00018082,2]
[350361623,1737813093563,-500.0,0.00018082,2]
[350361624,1737813093573,-690.64,0.00018082,2]
[350361625,1737813093583,-2315.92,0.00018082,2]
[350361626,1737813093592,-500.0,0.00018082,2]
[350361627,1737813093602,-1623.95,0.00018082,2]
[350361628,1737813093611,-500.0,0.00018082,2]
[350361629,1737813093620,-983.3,0.00018082,2]
[350361630,1737813093629,-500.0,0.00018082,2]
[350361631,1737813093639,-500.0,0.00018082,2]
[350361632,1737813093648,-500.0,0.00018082,2]
[350361633,1737813093657,-628.41,0.00018082,2]
[350361634,1737813093667,-547.24,0.00018082,2]
[350361635,1737813093676,-500.0,0.00018082,2]
[350361636,1737813093686,-760.92,0.00018082,2]
[350361637,1737813093695,-500.0,0.00018082,2]
[350361638,1737813093706,-772.61,0.00018082,2]
[350361639,1737813093716,-1375.09,0.00018082,2]
[350361640,1737813093725,-876.13,0.00018082,2]
[350361641,1737813093734,-537.57,0.00018082,2]
[350361642,1737813093744,-568.9,0.00018082,2]
[350361643,1737813093753,-2395.84,0.00018082,2]
[350361644,1737813093762,-1063.43,0.00018082,2]
[350361645,1737813093772,-487.29685962,0.00018082,2]
[350361646,1737813093782,-2460.08,0.00018082,2]
[350361647,1737813093791,-500.0,0.00018082,2]
[350361648,1737813093801,-500.0,0.00018082,2]
[350361649,1737813093811,-689.97,0.00018082,2]
[350361650,1737813093821,-740.0,0.00018082,2]
[350361651,1737813093830,-500.0,0.00018082,2]
[350361652,1737813093839,-500.0,0.00018082,2]
[350361653,1737813093849,-500.0,0.00018082,2]
[350361654,1737813093858,-667.16,0.00018082,2]
[350361655,1737813093867,-500.0,0.00018082,2]
[350361656,1737813093877,-706.71,0.00018082,2]
[350361657,1737813093887,-1131.23,0.00018082,2]
[350361658,1737813093900,-1416.08,0.00018082,2]
[350361659,1737813093910,-800.38,0.00018082,2]
[350361660,1737813093919,-500.0,0.00018082,2]
[350361661,1737813093928,-842.21,0.00018082,2]
[350361662,1737813093938,-500.0,0.00018082,2]
[350361663,1737813093948,-599.36,0.00018082,2]
[350361664,1737813093957,-732.46,0.00018082,2]
[350361665,1737813093967,-1308.92,0.00018082,2]
[350361666,1737813093978,-1000.0,0.00018082,2]
[350361667,1737813093987,-2319.73,0.00018082,2]
[350361668,1737813093996,-687.95,0.00018082,2]
[350361669,1737813094006,-352.44,0.00018082,2]
[350361670,1737813094016,-500.0,0.00018082,2]
[350361671,1737813094025,-924.66,0.00018082,2]
[350361672,1737813094035,-500.0,0.00018082,2]
[350361673,1737813094044,-1116.95,0.00018082,2]
[350361674,1737813094054,-528.29,0.00018082,2]
[350361675,1737813094064,-517.43,0.00018082,2]
[350361676,1737813094074,-621.51,0.00018082,2]
[350361677,1737813094083,-534.07,0.00018082,2]
[350361678,1737813094093,-500.0,0.00018082,2]
[350361679,1737813094102,-591.54,0.00018082,2]
[350361680,1737813094111,-815.81,0.00018082,2]
[350361681,1737813094121,-700.4,0.00018082,2]
[350361682,1737813094131,-500.0,0.00018082,2]
[350361683,1737813094140,-376.3,0.00018082,2]
[350361684,1737813094149,-200.0,0.00018082,2]
[350361685,1737813094158,-391.80149259,0.000181,2]
[350361686,1737813094168,-2623.3403566,0.00018107,2]
[350361687,1737813094178,-500.0,0.00018164,2]
[350361688,1737813094187,-500.0,0.00018164,2]
[350361689,1737813094198,-82902.51968737,0.00018189,2]
[350361690,1737813094207,-1117.85,0.00018218,2]
[350361691,1737813094216,-2342.33,0.00018218,2]
[350361692,1737813094226,-547.974536,0.00018219,2]
[350361693,1737813094235,-602.38,0.00018219,2]
[350361694,1737813094245,-376.945656,0.00018219,2]
[350361695,1737813094254,-500.0,0.00018219,2]
[350361696,1737813094263,-500.0,0.00018219,2]
[350361697,1737813094274,-500.0,0.00018219,2]
[350361698,1737813094283,-428.72,0.00018219,2]
[350361699,1737813094293,-500.0,0.00018219,2]
[350361700,1737813094303,-264.68,0.00018219,2]
[350361701,1737813094312,-500.0,0.00018219,2]
[350361702,1737813094322,-500.0,0.00018219,2]
[350361703,1737813094332,-500.0,0.00018219,2]
[350361704,1737813094342,-500.0,0.00018219,2]
[350361705,1737813094352,-500.0,0.00018219,2]
[350361706,1737813094362,-500.0,0.00018219,2]
[350361707,1737813094371,-347.3620118,0.00018219,2]
[350361708,1737813094381,-500.0,0.00018219,2]
[350361709,1737813094391,-177.58,0.00018219,2]
[350361710,1737813094401,-540.00592712,0.00018219,2]
[350361711,1737813094411,-571.14,0.00018219,2]
[350361712,1737813094420,-597.07,0.00018219,2]
[350361713,1737813094430,-500.0,0.00018219,2]
[350361714,1737813094440,-252.82,0.00018219,2]
[350361715,1737813094451,-533.46,0.00018219,2]
[350361716,1737813094577,-533.48,0.00018219,2]
[350361717,1737813094588,-410.05,0.00018219,2]
[350361718,1737813094598,-500.0,0.00018219,2]
[350361719,1737813094608,-592.2,0.00018219,2]
[350361720,1737813094618,-500.0,0.00018219,2]
[350361721,1737813094628,-559.85,0.00018219,2]
[350361722,1737813094637,-500.0,0.00018219,2]
[350361723,1737813094647,-531.39,0.00018219,2]
[350361724,1737813094657,-1889.73,0.00018219,2]
[350361725,1737813094667,-500.0,0.00018219,2]
[350361726,1737813094676,-665.28,0.00018219,2]
[350361727,1737813094686,-789.58,0.00018219,2]
[350361728,1737813094695,-500.0,0.00018219,2]
[350361729,1737813094706,-500.0,0.00018219,2]
[350361730,1737813094716,-500.0,0.00018219,2]
[350361731,1737813094725,-1330.19,0.00018219,2]
[350361732,1737813094734,-500.0,0.00018219,2]
[350361733,1737813094744,-500.0,0.00018219,2]
[350361734,1737813094753,-500.0,0.00018219,2]
[350361735,1737813094763,-744.86,0.00018219,2]
[350361736,1737813094772,-500.0,0.00018219,2]
[350361737,1737813094782,-770.24,0.00018219,2]
[350361738,1737813094792,-575.41,0.00018219,2]
[350361739,1737813094801,-1531.48,0.00018219,2]
[350361740,1737813094810,-500.0,0.00018219,2]
[350361741,1737813094819,-500.0,0.00018219,2]
[350361742,1737813094829,-2865.43,0.00018219,2]
[350361743,1737813094839,-500.0,0.00018219,2]
[350361744,1737813094848,-716.83,0.00018219,2]
[350361745,1737813094857,-500.0,0.00018219,2]
[350361746,1737813094867,-643.17,0.00018219,2]
[350361747,1737813094876,-609.94,0.00018219,2]
[350361748,1737813094887,-1101.23,0.00018219,2]
[350361749,1737813094900,-500.0,0.00018219,2]
[350361750,1737813094910,-500.0,0.00018219,2]
[350361751,1737813094919,-500.0,0.00018219,2]
[350361752,1737813094928,-1583.89,0.00018219,2]
[350361753,1737813094937,-782.83,0.00018219,2]
[350361754,1737813094946,-760.48,0.00018219,2]
[350361755,1737813094955,-1381.24,0.00018219,2]
[350361756,1737813094965,-2726.15,0.00018219,2]
[350361757,1737813094977,-766.47,0.00018219,2]
[350361758,1737813094988,-578.7,0.00018219,2]
[350361759,1737813094997,-2076.9,0.00018219,2]